[Event "*** Titled Tuesday Blitz"]
[Site "Chess.com"]
[Date "2020.10.20"]
[Round "5"]
[White "Shield12"]
[Black "Annawel"]
[Result "0-1"]
[WhiteElo "2820"]
[BlackElo "2933"]
[TimeControl "180+1"]
[EndTime "10:58:57 PDT"]
[Termination "Annawel won by resignation"]

1. e4 {[%clk 0:03:00.9]} 1... c5 {[%clk 0:02:59.8]} 2. Nf3 {[%clk 0:03:01.1]}
2... d6 {[%clk 0:03:00.3]} 3. d4 {[%clk 0:03:01.3]} 3... cxd4 {[%clk 0:03:01.2]}
4. Qxd4 {[%clk 0:03:02]} 4... a6 {[%clk 0:02:56.6]} 5. Be2 {[%clk 0:03:01.5]}
5... Nf6 {[%clk 0:02:55.9]} 6. h3 {[%clk 0:03:01.5]} 6... e6 {[%clk 0:02:56.3]}
7. c4 {[%clk 0:03:00.8]} 7... Be7 {[%clk 0:02:56.6]} 8. Nc3 {[%clk 0:03:00.8]}
8... b6 {[%clk 0:02:56.3]} 9. O-O {[%clk 0:03:00.2]} 9... Bb7 {[%clk 0:02:56.3]}
10. b3 {[%clk 0:02:59.3]} 10... Nbd7 {[%clk 0:02:56.5]} 11. Rd1 {[%clk
0:02:51.5]} 11... O-O {[%clk 0:02:56.1]} 12. Bb2 {[%clk 0:02:47.4]} 12... Qc7
{[%clk 0:02:55.9]} 13. Qe3 {[%clk 0:02:42.4]} 13... Rac8 {[%clk 0:02:46.1]} 14.
Rac1 {[%clk 0:02:41.9]} 14... Rfe8 {[%clk 0:02:45.3]} 15. b4 {[%clk 0:02:35.4]}
15... Qb8 {[%clk 0:02:43.6]} 16. a3 {[%clk 0:02:35.3]} 16... Bd8 {[%clk
0:02:35.6]} 17. Bd3 {[%clk 0:02:26.6]} 17... Bc7 {[%clk 0:02:32]} 18. Qd2 {[%clk
0:02:19]} 18... d5 {[%clk 0:02:26.1]} 19. Qe2 {[%clk 0:02:17.2]} 19... Bf4
{[%clk 0:02:19]} 20. Rc2 {[%clk 0:02:17.3]} 20... dxc4 {[%clk 0:02:11.6]} 21.
Bxc4 {[%clk 0:02:17.3]} 21... b5 {[%clk 0:02:12.3]} 22. Bb3 {[%clk 0:02:10.9]}
22... Ne5 {[%clk 0:02:03]} 23. Bc1 {[%clk 0:01:50.1]} 23... Nxf3+ {[%clk
0:01:57.8]} 24. Qxf3 {[%clk 0:01:51]} 24... Be5 {[%clk 0:01:57.2]} 25. Re1
{[%clk 0:01:40.6]} 25... Rc7 {[%clk 0:01:45.4]} 26. Bf4 {[%clk 0:01:25.5]} 26...
Rxc3 {[%clk 0:01:45.4]} 27. Qxc3 {[%clk 0:01:14.1]} 27... Bxf4 {[%clk
0:01:45.7]} 28. e5 {[%clk 0:01:12.7]} 28... Nd5 {[%clk 0:01:42.7]} 29. Qd4
{[%clk 0:01:12.8]} 29... Bg5 {[%clk 0:01:41.5]} 30. h4 {[%clk 0:01:10.9]} 30...
Bd8 {[%clk 0:01:38.9]} 31. Qg4 {[%clk 0:01:09]} 31... h6 {[%clk 0:01:33.7]} 32.
Rcc1 {[%clk 0:01:01.5]} 32... Bb6 {[%clk 0:01:31.5]} 33. Bc2 {[%clk 0:00:58.2]}
33... Ne7 {[%clk 0:01:20.8]} 34. Be4 {[%clk 0:00:56.3]} 34... Bxe4 {[%clk
0:01:20.5]} 35. Qxe4 {[%clk 0:00:56.3]} 35... Nd5 {[%clk 0:01:19.1]} 36. Re2
{[%clk 0:00:51.5]} 36... Rd8 {[%clk 0:01:16.9]} 37. g3 {[%clk 0:00:49.5]} 37...
Ne7 {[%clk 0:01:12.4]} 38. Kg2 {[%clk 0:00:48.2]} 38... Rd4 {[%clk 0:01:11.8]}
39. Qf3 {[%clk 0:00:46.6]} 39... Qd8 {[%clk 0:00:59.5]} 40. Rc3 {[%clk
0:00:42.4]} 40... Qd5 {[%clk 0:00:43]} 41. Qxd5 {[%clk 0:00:39.9]} 41... Rxd5
{[%clk 0:00:43.9]} 42. h5 {[%clk 0:00:36.8]} 42... Kf8 {[%clk 0:00:43.6]} 43. f4
{[%clk 0:00:36.4]} 43... Ke8 {[%clk 0:00:43.6]} 44. g4 {[%clk 0:00:35.6]} 44...
Kd7 {[%clk 0:00:43.7]} 45. Kf3 {[%clk 0:00:36.1]} 45... Rd4 {[%clk 0:00:43.9]}
46. Re4 {[%clk 0:00:35]} 46... Rd1 {[%clk 0:00:41.8]} 47. Ke2 {[%clk 0:00:30.5]}
47... Rg1 {[%clk 0:00:41.5]} 48. Kf3 {[%clk 0:00:23.4]} 48... Nd5 {[%clk
0:00:41]} 49. Rd3 {[%clk 0:00:23.1]} 49... Kc6 {[%clk 0:00:40.5]} 50. f5 {[%clk
0:00:20.2]} 50... Rf1+ {[%clk 0:00:38.7]} 51. Kg2 {[%clk 0:00:20]} 51... Rf2+
{[%clk 0:00:37.7]} 52. Kg3 {[%clk 0:00:19.8]} 52... exf5 {[%clk 0:00:38.3]} 53.
gxf5 {[%clk 0:00:17.7]} 53... Rxf5 {[%clk 0:00:39.2]} 54. e6 {[%clk 0:00:18]}
54... Rg5+ {[%clk 0:00:36.2]} 55. Kf3 {[%clk 0:00:17.4]} 55... fxe6 {[%clk
0:00:32.1]} 56. Rxe6+ {[%clk 0:00:18.3]} 56... Kb7 {[%clk 0:00:32.8]} 57. Ke4
{[%clk 0:00:16.1]} 57... Nf6+ {[%clk 0:00:32.4]} 58. Kf3 {[%clk 0:00:15.3]}
58... Rf5+ {[%clk 0:00:25.8]} 59. Ke2 {[%clk 0:00:15.7]} 59... Bc7 {[%clk
0:00:25.3]} 60. Re7 {[%clk 0:00:15]} 60... Re5+ {[%clk 0:00:21.8]} 61. Rxe5
{[%clk 0:00:14.9]} 61... Bxe5 {[%clk 0:00:22.7]} 62. Re3 {[%clk 0:00:14.9]}
62... Bd6 {[%clk 0:00:21.1]} 63. Re6 {[%clk 0:00:13.4]} 63... Kc6 {[%clk
0:00:21]} 64. Kd3 {[%clk 0:00:11.4]} 64... Kd7 {[%clk 0:00:21.3]} 65. Re1 {[%clk
0:00:10.5]} 65... Nxh5 {[%clk 0:00:21.7]} 66. Kd4 {[%clk 0:00:11.1]} 66... Nf6
{[%clk 0:00:21.6]} 67. Rh1 {[%clk 0:00:09.5]} 67... h5 {[%clk 0:00:21.6]} 68.
Rg1 {[%clk 0:00:09.1]} 68... Ng4 {[%clk 0:00:19.4]} 69. Kd5 {[%clk 0:00:09.7]}
69... Bh2 {[%clk 0:00:15.4]} 70. Rc1 {[%clk 0:00:08.7]} 70... h4 {[%clk
0:00:14.5]} 71. Ke4 {[%clk 0:00:08.9]} 71... Nf6+ {[%clk 0:00:13.7]} 72. Kf5
{[%clk 0:00:08.7]} 72... Bg3 {[%clk 0:00:13.1]} 73. Kg6 {[%clk 0:00:08.3]} 73...
h3 {[%clk 0:00:12.2]} 74. Kxg7 {[%clk 0:00:08.7]} 74... Nd5 {[%clk 0:00:11.5]}
75. Rd1 {[%clk 0:00:07.9]} 75... Ke6 {[%clk 0:00:11]} 76. Kg6 {[%clk 0:00:07.8]}
76... h2 {[%clk 0:00:10.8]} 77. Re1+ {[%clk 0:00:07.6]} 77... Bxe1 {[%clk
0:00:10.5]} 0-1

[Event "*** Titled Tuesday Blitz"]
[Site "Chess.com"]
[Date "2020.10.20"]
[Round "5"]
[White "RaunakSadhwani2005"]
[Black "kuban1991"]
[Result "0-1"]
[WhiteElo "2955"]
[BlackElo "2827"]
[TimeControl "180+1"]
[EndTime "10:58:59 PDT"]
[Termination "kuban1991 won by resignation"]

1. e4 {[%clk 0:02:51.8]} 1... e6 {[%clk 0:02:59.5]} 2. f4 {[%clk 0:02:50.6]}
2... d5 {[%clk 0:03:00.4]} 3. e5 {[%clk 0:02:50.4]} 3... c5 {[%clk 0:03:00.4]}
4. Nf3 {[%clk 0:02:47.7]} 4... Nc6 {[%clk 0:03:00.2]} 5. c3 {[%clk 0:02:47.8]}
5... Nge7 {[%clk 0:02:59.1]} 6. Na3 {[%clk 0:02:45.8]} 6... Nf5 {[%clk
0:02:56.9]} 7. Nc2 {[%clk 0:02:46.2]} 7... b6 {[%clk 0:02:53.3]} 8. d4 {[%clk
0:02:45.4]} 8... Bb7 {[%clk 0:02:50.7]} 9. Bd3 {[%clk 0:02:44.6]} 9... g6 {[%clk
0:02:50.1]} 10. O-O {[%clk 0:02:41]} 10... h5 {[%clk 0:02:49.8]} 11. a3 {[%clk
0:02:36.7]} 11... c4 {[%clk 0:02:46.4]} 12. Bxf5 {[%clk 0:02:26.1]} 12... gxf5
{[%clk 0:02:47.3]} 13. Bd2 {[%clk 0:02:24.9]} 13... Na5 {[%clk 0:02:43.9]} 14.
Be1 {[%clk 0:02:24.4]} 14... Be7 {[%clk 0:02:42.6]} 15. Bf2 {[%clk 0:02:22.2]}
15... Bc6 {[%clk 0:02:42]} 16. Qe1 {[%clk 0:02:20.7]} 16... h4 {[%clk
0:02:17.1]} 17. h3 {[%clk 0:02:16.5]} 17... Kd7 {[%clk 0:02:15.6]} 18. Ne3
{[%clk 0:02:14.1]} 18... Rh5 {[%clk 0:02:13.5]} 19. Kh1 {[%clk 0:02:13.7]} 19...
Qh8 {[%clk 0:02:13.5]} 20. Rg1 {[%clk 0:02:13.3]} 20... Rg8 {[%clk 0:02:13.5]}
21. Qe2 {[%clk 0:02:13.4]} 21... Ba4 {[%clk 0:02:07.5]} 22. Raf1 {[%clk
0:02:13.1]} 22... Kc6 {[%clk 0:02:01]} 23. Be1 {[%clk 0:02:12.9]} 23... Nb3
{[%clk 0:01:59.2]} 24. Nd2 {[%clk 0:01:51]} 24... Nc1 {[%clk 0:01:41.1]} 25. Qf3
{[%clk 0:01:51.1]} 25... b5 {[%clk 0:01:41.5]} 26. Bf2 {[%clk 0:01:40.8]} 26...
Nd3 {[%clk 0:01:37.9]} 27. Rb1 {[%clk 0:01:40.7]} 27... Qh6 {[%clk 0:01:19.4]}
28. b3 {[%clk 0:01:40.7]} 28... cxb3 {[%clk 0:01:12.5]} 29. Nxb3 {[%clk
0:01:36.4]} 29... Bxb3 {[%clk 0:01:11.9]} 30. Rxb3 {[%clk 0:01:36.1]} 30... Qxf4
{[%clk 0:01:10.9]} 31. Qxf4 {[%clk 0:01:36.1]} 31... Nxf4 {[%clk 0:01:11.8]} 32.
Rgb1 {[%clk 0:01:36.5]} 32... a6 {[%clk 0:01:09.4]} 33. a4 {[%clk 0:01:36.9]}
33... Rb8 {[%clk 0:01:08.5]} 34. axb5+ {[%clk 0:01:37.1]} 34... Rxb5 {[%clk
0:01:08.1]} 35. Rxb5 {[%clk 0:01:37.5]} 35... axb5 {[%clk 0:01:09]} 36. Nc2
{[%clk 0:01:37.5]} 36... Ne2 {[%clk 0:00:54.8]} 37. Be1 {[%clk 0:01:29.2]} 37...
Rh8 {[%clk 0:00:54.5]} 38. Ra1 {[%clk 0:01:29.6]} 38... Kb7 {[%clk 0:00:53.3]}
39. Rb1 {[%clk 0:01:29.5]} 39... Kb6 {[%clk 0:00:52.5]} 40. Ne3 {[%clk
0:01:23.8]} 40... Rc8 {[%clk 0:00:50]} 41. Nd1 {[%clk 0:01:22.8]} 41... Ra8
{[%clk 0:00:46.7]} 42. Rb2 {[%clk 0:01:17.9]} 42... Ra1 {[%clk 0:00:44.8]} 43.
Rxe2 {[%clk 0:01:17.9]} 43... Rxd1 {[%clk 0:00:45.1]} 44. Kh2 {[%clk 0:01:18.6]}
44... Rd3 {[%clk 0:00:37.6]} 45. Rc2 {[%clk 0:01:17.8]} 45... Bg5 {[%clk
0:00:36.5]} 46. g3 {[%clk 0:01:17.2]} 46... hxg3+ {[%clk 0:00:35.8]} 47. Bxg3
{[%clk 0:01:18.1]} 47... Rd2+ {[%clk 0:00:24.1]} 48. Rxd2 {[%clk 0:01:17.8]}
48... Bxd2 {[%clk 0:00:25]} 49. h4 {[%clk 0:01:18.7]} 49... Bxc3 {[%clk
0:00:24.9]} 50. Bf4 {[%clk 0:01:14.1]} 50... b4 {[%clk 0:00:19.5]} 51. h5 {[%clk
0:01:14.9]} 51... b3 {[%clk 0:00:20]} 52. h6 {[%clk 0:01:15.3]} 52... b2 {[%clk
0:00:19.8]} 53. h7 {[%clk 0:01:16]} 53... b1=Q {[%clk 0:00:20.4]} 54. h8=Q
{[%clk 0:01:16.2]} 54... Qc2+ {[%clk 0:00:18]} 55. Kh3 {[%clk 0:01:16.1]} 55...
Qd3+ {[%clk 0:00:18.5]} 56. Kh4 {[%clk 0:01:13.2]} 56... Qxd4 {[%clk 0:00:13.8]}
57. Qb8+ {[%clk 0:01:11.6]} 57... Ka5 {[%clk 0:00:14.1]} 58. Kg5 {[%clk
0:01:07.5]} 58... Bd2 {[%clk 0:00:13.6]} 59. Bxd2+ {[%clk 0:01:04.8]} 59...
Qxd2+ {[%clk 0:00:14.5]} 60. Kf6 {[%clk 0:01:05.7]} 60... f4 {[%clk 0:00:13.6]}
61. Qa7+ {[%clk 0:00:43.4]} 61... Kb5 {[%clk 0:00:12.7]} 62. Qb7+ {[%clk
0:00:42]} 62... Kc4 {[%clk 0:00:12.7]} 63. Qa6+ {[%clk 0:00:42.1]} 63... Kd4
{[%clk 0:00:12.4]} 64. Kxf7 {[%clk 0:00:38.7]} 64... Kxe5 {[%clk 0:00:12.6]} 65.
Qxe6+ {[%clk 0:00:37.6]} 65... Kd4 {[%clk 0:00:13.3]} 66. Qf6+ {[%clk
0:00:37.7]} 66... Ke3 {[%clk 0:00:13.2]} 67. Qe5+ {[%clk 0:00:38.1]} 67... Kf2
{[%clk 0:00:13.9]} 68. Kf6 {[%clk 0:00:32.9]} 68... d4 {[%clk 0:00:14.5]} 69.
Kf5 {[%clk 0:00:31.2]} 69... Qe3 {[%clk 0:00:15.1]} 70. Qh8 {[%clk 0:00:28]}
70... d3 {[%clk 0:00:15.5]} 71. Qh2+ {[%clk 0:00:27.7]} 71... Ke1 {[%clk
0:00:16.2]} 72. Qh1+ {[%clk 0:00:27.9]} 72... Ke2 {[%clk 0:00:16.7]} 73. Qg2+
{[%clk 0:00:27.6]} 73... Kd1 {[%clk 0:00:17.4]} 74. Qf1+ {[%clk 0:00:25.9]}
74... Kc2 {[%clk 0:00:17.6]} 75. Qa1 {[%clk 0:00:25.1]} 75... d2 {[%clk
0:00:18]} 76. Qa2+ {[%clk 0:00:25.4]} 76... Kd1 {[%clk 0:00:18.5]} 77. Qb1+
{[%clk 0:00:21.3]} 77... Ke2 {[%clk 0:00:19]} 0-1

[Event "*** Titled Tuesday Blitz"]
[Site "Chess.com"]
[Date "2020.10.20"]
[Round "5"]
[White "crescentmoon2411"]
[Black "JonahWillow"]
[Result "1/2-1/2"]
[WhiteElo "2874"]
[BlackElo "2643"]
[TimeControl "180+1"]
[EndTime "10:59:23 PDT"]
[Termination "Game drawn by repetition"]

1. d4 {[%clk 0:03:00.9]} 1... Nf6 {[%clk 0:02:59.2]} 2. Nf3 {[%clk 0:03:01]}
2... e6 {[%clk 0:02:59.2]} 3. Bf4 {[%clk 0:03:01.2]} 3... c5 {[%clk 0:02:58.6]}
4. e3 {[%clk 0:03:01.8]} 4... cxd4 {[%clk 0:02:58.1]} 5. exd4 {[%clk 0:03:00.4]}
5... b6 {[%clk 0:02:58.7]} 6. Nbd2 {[%clk 0:02:52.1]} 6... Be7 {[%clk
0:02:57.9]} 7. Bd3 {[%clk 0:02:49.3]} 7... Bb7 {[%clk 0:02:57.3]} 8. c3 {[%clk
0:02:45.8]} 8... O-O {[%clk 0:02:54.7]} 9. O-O {[%clk 0:02:44.1]} 9... d6 {[%clk
0:02:47.1]} 10. Re1 {[%clk 0:02:41.5]} 10... Nbd7 {[%clk 0:02:43.7]} 11. Nc4
{[%clk 0:02:24.3]} 11... Qc7 {[%clk 0:02:39.8]} 12. h3 {[%clk 0:02:12.5]} 12...
Rfe8 {[%clk 0:02:39.5]} 13. Bh2 {[%clk 0:02:05.8]} 13... Bf8 {[%clk 0:02:38.8]}
14. a4 {[%clk 0:01:56.2]} 14... a6 {[%clk 0:02:37.8]} 15. Ncd2 {[%clk
0:01:19.8]} 15... e5 {[%clk 0:02:33.5]} 16. Qc2 {[%clk 0:01:19.1]} 16... Rac8
{[%clk 0:02:23.7]} 17. Ng5 {[%clk 0:00:52.6]} 17... g6 {[%clk 0:02:14.7]} 18.
Bc4 {[%clk 0:00:41.6]} 18... Re7 {[%clk 0:01:31.2]} 19. Qb3 {[%clk 0:00:35.3]}
19... d5 {[%clk 0:00:36.7]} 20. Bf1 {[%clk 0:00:34.9]} 20... Rce8 {[%clk
0:00:25.7]} 21. Ngf3 {[%clk 0:00:30.7]} 21... Ne4 {[%clk 0:00:16.7]} 22. Nxe4
{[%clk 0:00:29.6]} 22... dxe4 {[%clk 0:00:16.9]} 23. Nxe5 {[%clk 0:00:30.2]}
23... Nxe5 {[%clk 0:00:16]} 24. Bxe5 {[%clk 0:00:31.1]} 24... Qc6 {[%clk
0:00:15.2]} 25. Rad1 {[%clk 0:00:25.6]} 25... Rd8 {[%clk 0:00:07.3]} 26. Bf4
{[%clk 0:00:18.4]} 26... Bg7 {[%clk 0:00:03.9]} 27. Be3 {[%clk 0:00:13.6]} 27...
h6 {[%clk 0:00:02.8]} 28. c4 {[%clk 0:00:09.3]} 28... Qc8 {[%clk 0:00:01.8]} 29.
Qxb6 {[%clk 0:00:07.6]} 29... Rc7 {[%clk 0:00:02.7]} 30. c5 {[%clk 0:00:07.2]}
30... Bd5 {[%clk 0:00:02.7]} 31. Qxa6 {[%clk 0:00:07.2]} 31... Rb7 {[%clk
0:00:03.6]} 32. b4 {[%clk 0:00:06.5]} 32... Qc7 {[%clk 0:00:04]} 33. c6 {[%clk
0:00:05.8]} 33... Ra7 {[%clk 0:00:04.2]} 34. Qb5 {[%clk 0:00:05.7]} 34... Bxc6
{[%clk 0:00:04.4]} 35. Qc4 {[%clk 0:00:05.7]} 35... Bd5 {[%clk 0:00:04.4]} 36.
Qxc7 {[%clk 0:00:05.9]} 36... Rxc7 {[%clk 0:00:05.1]} 37. b5 {[%clk 0:00:06.1]}
37... Bf8 {[%clk 0:00:03.7]} 38. Ra1 {[%clk 0:00:05.5]} 38... Bb4 {[%clk
0:00:03.7]} 39. Rec1 {[%clk 0:00:06]} 39... Ra7 {[%clk 0:00:04.3]} 40. b6 {[%clk
0:00:05.7]} 40... Rb7 {[%clk 0:00:04.5]} 41. a5 {[%clk 0:00:06]} 41... Ra8
{[%clk 0:00:04.1]} 42. Rcb1 {[%clk 0:00:06.3]} 42... Bxa5 {[%clk 0:00:04]} 43.
Rb5 {[%clk 0:00:06.2]} 43... Rxb6 {[%clk 0:00:03.7]} 44. Rxb6 {[%clk 0:00:06.4]}
44... Bxb6 {[%clk 0:00:03.8]} 45. Rb1 {[%clk 0:00:06.8]} 45... Ba7 {[%clk
0:00:03.5]} 46. Rb5 {[%clk 0:00:06.4]} 46... Bc6 {[%clk 0:00:03.4]} 47. Re5
{[%clk 0:00:05.2]} 47... Rb8 {[%clk 0:00:03.4]} 48. d5 {[%clk 0:00:05.4]} 48...
Bxe3 {[%clk 0:00:04.3]} 49. fxe3 {[%clk 0:00:05.3]} 49... Bb5 {[%clk 0:00:04.5]}
50. Bxb5 {[%clk 0:00:04.2]} 50... Rxb5 {[%clk 0:00:05.4]} 51. Re8+ {[%clk
0:00:03.2]} 51... Kg7 {[%clk 0:00:05.7]} 52. d6 {[%clk 0:00:03.6]} 52... Rd5
{[%clk 0:00:05.6]} 53. Rd8 {[%clk 0:00:03.3]} 53... Kf6 {[%clk 0:00:05.7]} 54.
Kf2 {[%clk 0:00:03.5]} 54... Ke6 {[%clk 0:00:05.5]} 55. Re8+ {[%clk 0:00:03.7]}
55... Kf5 {[%clk 0:00:05.7]} 56. Rd8 {[%clk 0:00:03.7]} 56... Ke6 {[%clk
0:00:05.5]} 57. Re8+ {[%clk 0:00:03.9]} 57... Kf5 {[%clk 0:00:04.3]} 58. g4+
{[%clk 0:00:03.5]} 58... Kf6 {[%clk 0:00:04.3]} 59. Rd8 {[%clk 0:00:04.1]} 59...
Ke6 {[%clk 0:00:03.5]} 60. Re8+ {[%clk 0:00:04.6]} 60... Kf6 {[%clk 0:00:03.8]}
61. Rxe4 {[%clk 0:00:04.7]} 61... Rxd6 {[%clk 0:00:04.4]} 62. Kf3 {[%clk
0:00:05.2]} 62... Kg7 {[%clk 0:00:04.9]} 63. h4 {[%clk 0:00:05.3]} 63... Rf6+
{[%clk 0:00:05.3]} 64. Kg3 {[%clk 0:00:05.6]} 64... Ra6 {[%clk 0:00:06.2]} 65.
Rf4 {[%clk 0:00:06]} 65... Ra1 {[%clk 0:00:06.6]} 66. Kf3 {[%clk 0:00:06.3]}
66... Rf1+ {[%clk 0:00:06.8]} 67. Kg3 {[%clk 0:00:06.9]} 67... Rh1 {[%clk
0:00:07.4]} 68. Re4 {[%clk 0:00:06.6]} 68... Rg1+ {[%clk 0:00:07.8]} 69. Kf3
{[%clk 0:00:06]} 69... Rb1 {[%clk 0:00:08.7]} 70. Rd4 {[%clk 0:00:06]} 70... Rh1
{[%clk 0:00:09.1]} 71. Kg3 {[%clk 0:00:06.3]} 71... Rg1+ {[%clk 0:00:09.6]} 72.
Kf3 {[%clk 0:00:05.7]} 72... Ra1 {[%clk 0:00:10.5]} 73. Kg3 {[%clk 0:00:06.2]}
73... Rg1+ {[%clk 0:00:10.8]} 74. Kf3 {[%clk 0:00:06.5]} 74... g5 {[%clk
0:00:11.2]} 75. hxg5 {[%clk 0:00:05.8]} 75... hxg5 {[%clk 0:00:12.1]} 76. Rd5
{[%clk 0:00:06.3]} 76... Kg6 {[%clk 0:00:12.7]} 77. Rd6+ {[%clk 0:00:06.4]}
77... f6 {[%clk 0:00:13.3]} 78. e4 {[%clk 0:00:06.4]} 78... Rf1+ {[%clk
0:00:13.7]} 79. Kg3 {[%clk 0:00:06.5]} 79... Re1 {[%clk 0:00:13.5]} 80. Kf3
{[%clk 0:00:06.6]} 80... Kf7 {[%clk 0:00:14.1]} 81. Ra6 {[%clk 0:00:06.5]} 81...
Rf1+ {[%clk 0:00:13.7]} 82. Kg3 {[%clk 0:00:06.7]} 82... Rf4 {[%clk 0:00:14.6]}
83. Ra7+ {[%clk 0:00:07]} 83... Kg6 {[%clk 0:00:15.1]} 84. Re7 {[%clk
0:00:06.8]} 84... Kh6 {[%clk 0:00:15.1]} 85. e5 {[%clk 0:00:06.6]} 85... fxe5
{[%clk 0:00:15.1]} 86. Re6+ {[%clk 0:00:06.6]} 86... Kg7 {[%clk 0:00:15.6]} 87.
Rxe5 {[%clk 0:00:07.3]} 87... Kg6 {[%clk 0:00:16.1]} 88. Re6+ {[%clk 0:00:07.7]}
88... Kg7 {[%clk 0:00:16.5]} 89. Re5 {[%clk 0:00:08]} 89... Kg6 {[%clk
0:00:16.7]} 90. Re6+ {[%clk 0:00:08.4]} 90... Kg7 {[%clk 0:00:16.2]} 91. Re5
{[%clk 0:00:08.4]} 1/2-1/2

[Event "*** Titled Tuesday Blitz"]
[Site "Chess.com"]
[Date "2020.10.20"]
[Round "5"]
[White "Deepweb2020"]
[Black "JoliyRoger"]
[Result "0-1"]
[WhiteElo "2229"]
[BlackElo "2437"]
[TimeControl "180+1"]
[EndTime "10:59:38 PDT"]
[Termination "JoliyRoger won on time"]

1. d4 {[%clk 0:03:00.9]} 1... Nf6 {[%clk 0:02:59.8]} 2. c4 {[%clk 0:03:00.5]}
2... e6 {[%clk 0:03:00.4]} 3. g3 {[%clk 0:03:00.2]} 3... c5 {[%clk 0:03:00.1]}
4. Nf3 {[%clk 0:02:58.2]} 4... cxd4 {[%clk 0:03:00.2]} 5. Qxd4 {[%clk
0:02:55.8]} 5... Be7 {[%clk 0:03:01.1]} 6. Bg2 {[%clk 0:02:51.3]} 6... O-O
{[%clk 0:02:53.3]} 7. O-O {[%clk 0:02:44.9]} 7... d6 {[%clk 0:02:47.5]} 8. b3
{[%clk 0:02:40.6]} 8... Qc7 {[%clk 0:02:42.5]} 9. Bb2 {[%clk 0:02:37.9]} 9...
Nbd7 {[%clk 0:02:39.2]} 10. Nc3 {[%clk 0:02:37]} 10... a6 {[%clk 0:02:39.3]} 11.
Rfd1 {[%clk 0:02:36.2]} 11... Rb8 {[%clk 0:02:39.4]} 12. Rac1 {[%clk 0:02:34.3]}
12... Nc5 {[%clk 0:02:35.4]} 13. Nd2 {[%clk 0:02:17.9]} 13... e5 {[%clk
0:01:37.7]} 14. Nd5 {[%clk 0:02:08.4]} 14... Nxd5 {[%clk 0:01:26.7]} 15. Qxd5
{[%clk 0:02:06]} 15... Be6 {[%clk 0:01:17.7]} 16. Qf3 {[%clk 0:02:05.7]} 16...
Rfc8 {[%clk 0:01:14.5]} 17. Ne4 {[%clk 0:01:48.9]} 17... Nxe4 {[%clk 0:01:14.1]}
18. Qxe4 {[%clk 0:01:47.2]} 18... Qa5 {[%clk 0:01:08.8]} 19. Qb1 {[%clk
0:01:19.5]} 19... b5 {[%clk 0:01:04.9]} 20. Bc3 {[%clk 0:01:12.9]} 20... Qb6
{[%clk 0:01:02.6]} 21. cxb5 {[%clk 0:01:09.3]} 21... axb5 {[%clk 0:01:02.6]} 22.
Bd5 {[%clk 0:01:00.2]} 22... Bxd5 {[%clk 0:00:59.3]} 23. Rxd5 {[%clk 0:01:00.8]}
23... Qb7 {[%clk 0:00:41.9]} 24. e4 {[%clk 0:00:49.7]} 24... Rc6 {[%clk
0:00:40.7]} 25. Bb2 {[%clk 0:00:42.1]} 25... Rbc8 {[%clk 0:00:39.2]} 26. Rxc6
{[%clk 0:00:37.5]} 26... Qxc6 {[%clk 0:00:36.2]} 27. Ba3 {[%clk 0:00:34]} 27...
h6 {[%clk 0:00:28.4]} 28. Qd3 {[%clk 0:00:33.2]} 28... Qc2 {[%clk 0:00:18.1]}
29. Qxc2 {[%clk 0:00:16.6]} 29... Rxc2 {[%clk 0:00:18.5]} 30. Bxd6 {[%clk
0:00:16.4]} 30... Bxd6 {[%clk 0:00:17.8]} 31. Rxd6 {[%clk 0:00:17.2]} 31... Rxa2
{[%clk 0:00:17.9]} 32. Rd5 {[%clk 0:00:17.9]} 32... b4 {[%clk 0:00:17.4]} 33.
Rb5 {[%clk 0:00:14.1]} 33... Re2 {[%clk 0:00:06.9]} 34. Rxb4 {[%clk 0:00:13.2]}
34... g5 {[%clk 0:00:07.5]} 35. Kg2 {[%clk 0:00:13.4]} 35... g4 {[%clk
0:00:07.2]} 36. Rb6 {[%clk 0:00:08.6]} 36... Kg7 {[%clk 0:00:07.1]} 37. Rb4
{[%clk 0:00:08.5]} 37... Kg6 {[%clk 0:00:06.6]} 38. Kf1 {[%clk 0:00:08.7]} 38...
Rb2 {[%clk 0:00:06]} 39. Rb8 {[%clk 0:00:08]} 39... f6 {[%clk 0:00:06.9]} 40. b4
{[%clk 0:00:06.7]} 40... h5 {[%clk 0:00:06.3]} 41. b5 {[%clk 0:00:07.3]} 41...
Kg7 {[%clk 0:00:05.5]} 42. b6 {[%clk 0:00:07]} 42... Rb1+ {[%clk 0:00:06.4]} 43.
Ke2 {[%clk 0:00:06.5]} 43... Rb4 {[%clk 0:00:07.1]} 44. Kd3 {[%clk 0:00:05.9]}
44... Rd4+ {[%clk 0:00:06.9]} 45. Kc3 {[%clk 0:00:06]} 45... Rd1 {[%clk
0:00:05.6]} 46. Kc2 {[%clk 0:00:05.2]} 46... Rd4 {[%clk 0:00:03.7]} 47. Kc3
{[%clk 0:00:05.4]} 47... Rd1 {[%clk 0:00:03.9]} 48. Kc4 {[%clk 0:00:06]} 48...
Rc1+ {[%clk 0:00:03.9]} 49. Kd5 {[%clk 0:00:06.2]} 49... Rb1 {[%clk 0:00:03.9]}
50. Ke6 {[%clk 0:00:06.4]} 50... Rc1 {[%clk 0:00:03.5]} 51. Kf5 {[%clk
0:00:06.6]} 51... Rf1 {[%clk 0:00:02.7]} 52. b7 {[%clk 0:00:06.1]} 52... Rxf2+
{[%clk 0:00:02.2]} 53. Ke6 {[%clk 0:00:06.6]} 53... Rb2 {[%clk 0:00:03.1]} 54.
Kd6 {[%clk 0:00:06]} 54... Rb6+ {[%clk 0:00:03.1]} 55. Kd5 {[%clk 0:00:06.2]}
55... Rb2 {[%clk 0:00:03.7]} 56. Ke6 {[%clk 0:00:05.9]} 56... Rb6+ {[%clk
0:00:03.7]} 57. Kf5 {[%clk 0:00:05.5]} 57... Rb1 {[%clk 0:00:04.2]} 58. Ke6
{[%clk 0:00:03.9]} 58... Kg6 {[%clk 0:00:04.5]} 59. Kd7 {[%clk 0:00:04.8]} 59...
Kg7 {[%clk 0:00:04.7]} 60. Kc7 {[%clk 0:00:05.5]} 60... Rc1+ {[%clk 0:00:05.3]}
61. Kd6 {[%clk 0:00:05.6]} 61... Rb1 {[%clk 0:00:05.9]} 62. Kc5 {[%clk
0:00:03.9]} 62... Rc1+ {[%clk 0:00:06.1]} 63. Kb4 {[%clk 0:00:03]} 63... Rb1+
{[%clk 0:00:06.6]} 64. Kc3 {[%clk 0:00:03.6]} 64... Rb6 {[%clk 0:00:07.2]} 65.
Kd2 {[%clk 0:00:03.7]} 65... Rb1 {[%clk 0:00:07.7]} 66. Ke3 {[%clk 0:00:04.1]}
66... Rb3+ {[%clk 0:00:07.7]} 67. Kf2 {[%clk 0:00:04.4]} 67... Rb2+ {[%clk
0:00:07.6]} 68. Kg1 {[%clk 0:00:04.8]} 68... Rb6 {[%clk 0:00:06.8]} 69. Kf1
{[%clk 0:00:05.2]} 69... Rb2 {[%clk 0:00:07.1]} 70. Ke1 {[%clk 0:00:05.9]} 70...
Kh7 {[%clk 0:00:07.7]} 71. Kd1 {[%clk 0:00:06.6]} 71... Rb1+ {[%clk 0:00:08.3]}
72. Kc2 {[%clk 0:00:06.7]} 72... Rb6 {[%clk 0:00:09.2]} 73. Rf8 {[%clk
0:00:05.7]} 73... Rxb7 {[%clk 0:00:09.2]} 74. Rxf6 {[%clk 0:00:06]} 74... Ra7
{[%clk 0:00:08.3]} 75. Rf5 {[%clk 0:00:05.6]} 75... Kg6 {[%clk 0:00:08.3]} 76.
Rf8 {[%clk 0:00:01.9]} 76... Ra2+ {[%clk 0:00:08.8]} 77. Kd3 {[%clk 0:00:02.1]}
77... Rxh2 {[%clk 0:00:09.7]} 78. Rg8+ {[%clk 0:00:01.8]} 78... Kf7 {[%clk
0:00:10.2]} 79. Rh8 {[%clk 0:00:01]} 79... Kg7 {[%clk 0:00:10]} 0-1